bitfinex/quotes_SOLUSD_20250902
["timestamp","ask_amount","ask_price","bid_price","bid_amount"]
[1756831931898,0.71,201.76,201.75,0.03]
[1756831932096,30.95613817,201.77,201.75,0.03]
[1756831932097,4.95613817,201.77,201.75,0.03]
[1756831932314,44.83613817,201.77,201.75,0.03]
[1756831932606,31.72573162,201.79,201.75,0.03]
[1756831932819,39.88,201.78,201.75,3.99675072]
[1756831933020,39.88,201.78,201.75,0.69]
[1756831933191,0.06,201.79,201.75,0.69]
[1756831933386,39.94,201.79,201.75,3.99675072]
[1756831933613,0.06,201.79,201.77,16.90234473]
[1756831934410,0.06,201.79,201.75,0.69]
[1756831934600,0.06,201.79,201.75,0.03]
[1756831934800,0.06,201.79,201.75,0.69]
[1756831934999,5.01569994,201.79,201.75,0.69]
[1756831935197,9.03245066,201.79,201.75,0.03]
[1756831936999,8.32245066,201.79,201.75,0.03]
[1756831937208,0.06,201.79,201.76,3.96675072]
[1756831937818,0.06,201.79,201.77,3.96675072]
[1756831938493,0.06,201.79,201.77,0.66]
[1756831939222,0.06,201.79,201.77,3.96675072]
[1756831939723,0.06,201.79,201.77,13.59559401]
[1756831939895,0.06,201.79,201.77,17.56234473]
[1756831940097,0.06,201.79,201.78,17.56234473]
[1756831941017,0.06,201.79,201.78,13.59559401]
[1756831942390,0.06,201.79,201.75,0.03]
[1756831942391,4.07675072,201.79,201.75,0.03]
[1756831942591,4.01675072,201.78,201.75,0.03]
[1756831942807,3.30675072,201.78,201.75,0.03]
[1756831943003,3.36675072,201.79,201.75,0.03]
[1756831943418,0.06,201.79,201.75,0.69]
[1756831943600,0.06,201.79,201.76,0.66]
[1756831943801,0.06,201.79,201.77,3.30675072]
[1756831944042,0.06,201.79,201.77,3.96675072]
[1756831944196,0.06,201.79,201.76,16.90234473]
[1756831944396,0.06,201.79,201.76,17.56234473]
[1756831944596,5.01568185,201.79,201.76,13.59559401]
[1756831944810,4.01675072,201.78,201.75,0.03]
[1756831945014,5.01568185,201.79,201.75,0.03]
[1756831945209,4.01675072,201.78,201.75,0.03]
[1756831945622,5.66601106,201.78,201.75,0.03]
[1756831945803,8.97276178,201.78,201.75,0.03]
[1756831946004,5.01571276,201.79,201.75,0.03]
[1756831946215,0.71,201.78,201.75,0.03]
[1756831946416,9.03246348,201.79,201.75,0.03]
[1756831946624,3.30675072,201.78,201.75,0.03]
[1756831946800,4.01675072,201.78,201.75,0.03]
[1756831947200,4.95613817,201.77,201.75,0.03]
[1756831947909,4.01675072,201.76,201.75,0.03]
[1756831948315,3.30675072,201.77,201.75,0.03]
[1756831948518,0.71,201.78,201.75,0.03]
[1756831948819,5.01571575,201.79,201.75,0.03]
[1756831948820,4.01675072,201.77,201.75,0.03]
[1756831949241,0.71,201.76,201.75,0.03]
[1756831949822,5.66638382,201.76,201.75,0.03]
[1756831950030,8.97313454,201.76,201.75,0.03]
[1756831951915,48.81313454,201.76,201.75,0.03]
[1756831952720,48.81313454,201.76,201.75,1e-08]
[1756831952905,26.0,201.73,201.7,0.03]
[1756831953221,3.30675072,201.71,201.7,0.03]
[1756831953602,22.20136601,201.71,201.7,0.03]
[1756831954022,26.0,201.68,201.61,0.03]
[1756831954224,3.30675072,201.62,201.61,0.03]
[1756831954529,43.14675072,201.63,201.61,0.03]
[1756831954830,39.84,201.63,201.61,0.03]
[1756831955131,3.30675072,201.62,201.61,0.03]
[1756831955503,8.97657613,201.62,201.61,0.03]
[1756831956527,8.26657613,201.62,201.61,0.03]
[1756831957029,48.10657613,201.62,201.61,0.03]
[1756831958328,43.14675072,201.62,201.61,0.03]
[1756831958515,48.10657613,201.62,201.61,0.03]
[1756831958716,48.81657613,201.62,201.61,0.03]
[1756831959328,8.26657613,201.62,201.61,0.03]
[1756831959521,39.84,201.64,201.61,5.86323433]
[1756831959721,10.13133835,201.69,201.63,5.17323433]
[1756831959925,39.84,201.68,201.64,5.17323433]
[1756831960230,39.84,201.68,201.65,0.66]
[1756831960411,39.84,201.68,201.64,5.17323433]
[1756831960614,5.17323433,201.66,201.62,0.66]
[1756831960808,39.84,201.65,201.62,0.66]
[1756831961015,5.17323433,201.63,201.61,0.03]
[1756831961215,45.01323433,201.62,201.61,0.03]
[1756831961518,52.33488415,201.62,201.61,0.03]
[1756831961915,39.84,201.62,201.61,0.03]
[1756831962237,0.67,201.69,201.61,13.24488415]
[1756831962434,12.49488415,201.65,201.61,0.75]
[1756831962623,52.33488415,201.64,201.61,0.03]
[1756831962824,39.84,201.63,201.61,0.03]
[1756831963025,52.33488415,201.63,201.61,0.03]
[1756831963427,39.84,201.63,201.61,0.03]
[1756831964028,39.84,201.63,201.61,0.75]
[1756831964917,12.49488415,201.65,201.62,0.72]
[1756831965114,39.84,201.64,201.62,0.72]
[1756831965319,39.84,201.64,201.62,13.21488415]
[1756831965735,39.84,201.64,201.62,0.72]
[1756831967633,57.29422676,201.64,201.61,0.03]
[1756831968252,39.84,201.63,201.62,0.72]
[1756831968631,12.49488415,201.67,201.62,0.72]
[1756831968821,39.84,201.66,201.63,13.21488415]
[1756831969027,39.84,201.65,201.62,26.09047816]
[1756831969231,39.84,201.64,201.62,0.72]
[1756831969431,0.67,201.69,201.62,13.21488415]
[1756831969628,12.49488415,201.66,201.61,0.03]
[1756831969832,39.84,201.65,201.61,0.03]
[1756831970034,12.49488415,201.63,201.61,0.03]
[1756831971039,13.16488415,201.62,201.61,0.03]
[1756831971528,39.16488415,201.62,201.61,0.03]
[1756831971724,44.12470956,201.62,201.61,0.03]
[1756831972728,31.62982541,201.62,201.61,0.03]
[1756831972933,78.33488415,201.62,201.61,0.03]
[1756831973134,38.49488415,201.62,201.61,0.03]
[1756831973350,78.33488415,201.62,201.61,0.03]
[1756831973558,39.84,201.62,201.61,0.03]
[1756831973925,39.84,201.62,201.61,13.24488415]
[1756831974436,39.84,201.62,201.61,0.75]
[1756831974642,39.84,201.62,201.61,13.24488415]
[1756831974956,39.84,201.62,201.61,0.75]
[1756831975550,39.84,201.62,201.61,0.03]
[1756831976154,57.29470956,201.62,201.61,0.03]
[1756831976363,57.96470956,201.62,201.61,0.03]
[1756831976728,57.29470956,201.62,201.61,0.03]
[1756831977252,52.33488415,201.62,201.61,0.03]
[1756831977825,31.62933371,201.64,201.61,0.03]
[1756831978051,39.84,201.63,201.61,0.03]
[1756831978351,12.49488415,201.62,201.61,0.03]
[1756831978726,13.16488415,201.62,201.61,0.03]
[1756831979136,18.12470956,201.62,201.61,0.03]
[1756831979947,17.45470956,201.62,201.61,0.03]
[1756831980251,57.96470956,201.62,201.61,0.03]
[1756831981262,57.29470956,201.62,201.61,0.03]
[1756831981547,17.45470956,201.62,201.61,0.03]
[1756831981746,57.29470956,201.62,201.61,0.03]
[1756831982052,57.96470956,201.62,201.61,0.03]
[1756831982645,4.95958217,201.63,201.61,0.03]
[1756831982844,17.45446632,201.63,201.61,0.03]
[1756831983054,39.84,201.62,201.61,0.03]
[1756831983545,39.84,201.62,201.61,0.75]
[1756831984258,39.84,201.63,201.61,13.24488415]
[1756831984566,4.95810402,201.69,201.62,26.81047816]
[1756831984567,39.84,201.64,201.62,26.81047816]
[1756831984852,13.16488415,201.63,201.61,0.03]
[1756831985029,52.33488415,201.62,201.61,0.03]
[1756831985430,57.29470956,201.62,201.61,0.03]
[1756831985647,57.96470956,201.62,201.61,0.03]
[1756831986043,83.96470956,201.62,201.61,0.03]
[1756831986659,83.96470956,201.62,201.59,33.71388709]
[1756831986660,26.0,201.6,201.59,33.71388709]
[1756831986968,91.92625301,201.6,201.59,7.89982]
[1756831987330,91.92625301,201.6,201.58,0.03]
[1756831987331,5.38704823,201.59,201.58,0.03]
[1756831987535,17.88193238,201.59,201.58,0.03]
[1756831987750,18.55193238,201.59,201.58,0.03]
[1756831988176,17.45544767,201.59,201.58,0.03]
[1756831988358,52.33488415,201.59,201.58,0.03]
[1756831988654,39.84,201.59,201.58,0.75]
[1756831988829,39.84,201.59,201.58,0.03]
[1756831989025,12.49488415,201.61,201.58,0.75]
[1756831989225,39.84,201.6,201.58,0.75]
[1756831989826,39.84,201.6,201.58,0.03]
[1756831990033,39.84,201.6,201.59,0.72]
[1756831990233,0.28432314,201.67,201.59,13.21488415]
[1756831990433,12.49488415,201.64,201.6,0.72]
[1756831990649,39.84,201.63,201.6,0.72]
[1756831991149,39.84,201.63,201.58,12.52488415]
[1756831991150,12.49488415,201.61,201.58,0.03]
[1756831991355,52.33488415,201.6,201.58,0.03]
[1756831991548,39.84,201.6,201.58,0.03]
[1756831991748,39.84,201.6,201.59,0.71]
[1756831992464,39.84,201.61,201.59,13.20488415]
[1756831992635,39.84,201.61,201.6,0.71]
[1756831993192,39.84,201.63,201.6,13.20488415]
[1756831993461,39.84,201.63,201.61,0.71]
[1756831993659,39.84,201.63,201.6,12.49488415]
[1756831993842,39.84,201.63,201.61,0.71]
[1756831994164,39.84,201.63,201.62,0.71]
[1756831994861,57.29446357,201.63,201.59,0.71]
[1756831995058,12.49488415,201.61,201.58,0.03]
[1756831995251,39.84,201.6,201.58,0.74]
[1756831996540,44.80033565,201.6,201.58,0.03]
[1756831996738,52.33488415,201.6,201.58,0.03]
[1756831996960,39.84,201.6,201.58,0.03]
[1756831997663,39.84,201.6,201.59,0.71]
[1756831997874,4.95839766,201.68,201.6,13.59559401]
[1756831998165,12.49488415,201.66,201.61,13.20488415]
[1756831998471,26.0,201.61,201.58,0.03]
[1756831998641,12.49488415,201.59,201.58,0.03]
[1756831999060,13.18488415,201.59,201.58,0.03]
[1756831999364,39.84,201.6,201.58,0.03]
[1756831999583,17.45544767,201.59,201.58,0.03]
[1756832000781,4.96056352,201.59,201.58,0.03]
[1756832001081,17.45544767,201.59,201.58,0.03]
[1756832001379,18.14544767,201.59,201.58,0.03]
[1756832002884,18.42977081,201.59,201.58,0.03]
[1756832004381,44.80056352,201.59,201.58,0.03]
[1756832004678,58.26977081,201.59,201.58,0.03]
[1756832005071,45.08488666,201.59,201.58,0.03]
[1756832005381,57.57977081,201.59,201.58,0.03]
[1756832005884,58.26977081,201.59,201.58,0.03]
[1756832006477,57.29544767,201.59,201.58,0.03]
[1756832006678,57.98544767,201.59,201.58,0.03]
[1756832006894,58.41193238,201.59,201.58,0.03]
[1756832007192,26.0,201.57,201.56,0.03]
[1756832007405,0.14216157,201.55,201.54,1e-08]
[1756832007684,78.47704572,201.55,201.54,1e-08]
[1756832007890,83.43859372,201.55,201.54,1e-08]
[1756832008081,84.12859372,201.55,201.54,1e-08]
[1756832012384,83.58075529,201.55,201.54,1e-08]
[1756832012762,84.27075529,201.55,201.54,1e-08]
[1756832013995,71.77587114,201.55,201.54,1e-08]
[1756832014166,70.801548,201.55,201.54,0.71000001]
[1756832014501,83.29643215,201.55,201.54,1e-08]
[1756832015109,43.45643215,201.55,201.54,1e-08]
[1756832015279,83.29643215,201.55,201.54,0.71000001]
[1756832015476,4.96056352,201.59,201.54,0.71000001]
[1756832015692,0.06,201.6,201.55,0.71]
[1756832015903,39.84,201.59,201.55,13.20488415]
[1756832016107,65.84,201.59,201.56,0.71]
[1756832016408,39.84,201.59,201.56,0.71]
[1756832016711,0.06,201.6,201.56,13.20488415]
[1756832016913,39.84,201.59,201.57,0.71]
[1756832017206,12.49488415,201.58,201.54,1e-08]
[1756832017501,39.84,201.59,201.55,0.71]
[1756832017502,12.49488415,201.59,201.55,0.71]
[1756832017703,39.84,201.58,201.56,0.71]
[1756832018257,39.84,201.58,201.57,0.71]
[1756832019409,39.82,201.58,201.57,0.71]
[1756832019577,39.88,201.58,201.57,0.71]
[1756832020179,0.06,201.58,201.57,0.71]
[1756832020497,39.88,201.58,201.57,0.71]
[1756832020678,39.88,201.58,201.57,13.20488415]
[1756832021105,39.88,201.58,201.57,18.16593986]
[1756832021598,39.88,201.58,201.57,0.71]
[1756832021800,39.88,201.58,201.57,8.99079095]
[1756832022035,39.88,201.58,201.57,0.71]
[1756832022314,39.88,201.58,201.54,8.28079096]
[1756832022516,39.88,201.58,201.55,0.72]
[1756832022723,39.88,201.58,201.55,9.00079095]
[1756832022905,39.88,201.58,201.56,0.72]
[1756832023098,39.88,201.58,201.57,0.72]
[1756832023694,0.06,201.58,201.57,9.00079095]
[1756832024024,0.06,201.58,201.57,0.72]
[1756832025519,0.06,201.58,201.57,22.59638496]
[1756832025896,0.06,201.58,201.57,27.55744067]
[1756832026308,0.06,201.58,201.57,27.69960224]
[1756832026519,0.06,201.58,201.57,27.98392538]
[1756832027391,0.06,201.58,201.57,22.59638496]
[1756832027813,0.06,201.58,201.57,27.55744067]
[1756832029023,0.06,201.58,201.57,0.72]
[1756832029224,0.06,201.58,201.57,22.59638496]
[1756832030094,0.06,201.58,201.57,27.55744067]
[1756832031008,0.06,201.58,201.57,19.27664972]
[1756832031210,0.06,201.58,201.57,22.59638496]
[1756832031520,0.06,201.58,201.57,27.55744067]
[1756832035329,0.06,201.58,201.55,13.59559401]
[1756832035528,0.06,201.58,201.55,0.72]
[1756832035906,0.06,201.58,201.56,8.28079095]
[1756832036828,0.06,201.58,201.56,9.00079095]
[1756832037420,0.06,201.58,201.56,4.03255503]
[1756832037609,0.06,201.58,201.57,17.62814904]
[1756832040226,0.06,201.58,201.57,22.58920475]
[1756832040428,0.06,201.58,201.57,17.62814904]
[1756832040641,0.06,201.58,201.54,1e-08]
[1756832041322,0.06,201.58,201.54,3.31255504]
[1756832041523,0.06,201.58,201.55,8.28325936]
[1756832042139,0.06,201.58,201.54,9.00325937]
[1756832042324,0.06,201.58,201.54,1e-08]
[1756832042325,0.7,201.57,201.54,1e-08]
[1756832042637,39.78,201.56,201.54,1e-08]
[1756832042821,40.48,201.56,201.54,1e-08]
[1756832043211,45.44134255,201.56,201.54,1e-08]
[1756832043412,8.98325936,201.55,201.54,1e-08]
[1756832043634,0.7,201.55,201.54,1e-08]
[1756832044012,8.98325936,201.55,201.54,1e-08]
[1756832045743,13.94480736,201.55,201.54,1e-08]
[1756832047623,14.2291305,201.55,201.54,1e-08]
[1756832048647,0.42648471,201.54,201.53,1e-08]
[1756832048944,8.70974407,201.54,201.53,1e-08]
[1756832049239,49.18974407,201.54,201.53,1e-08]
[1756832049814,54.15153825,201.54,201.53,1e-08]
[1756832050014,14.37153825,201.54,201.53,1e-08]
[1756832050229,39.94505354,201.54,201.53,1e-08]
[1756832050435,80.15153825,201.54,201.53,1e-08]
[1756832050616,54.15153825,201.54,201.53,1e-08]
[1756832052040,26.28432314,201.52,201.51,0.03]
[1756832052251,34.70974407,201.52,201.51,0.03]
[1756832052540,0.14216157,201.51,201.49,0.03]
[1756832052747,49.16974407,201.5,201.49,0.03]
[1756832053830,54.13252322,201.5,201.49,0.03]
[1756832054343,45.02710229,201.5,201.49,0.03]
[1756832054648,53.31036165,201.5,201.49,0.03]
[1756832055446,53.99036165,201.5,201.49,0.03]
[1756832057923,54.13252322,201.5,201.49,0.03]
[1756832058939,14.35252322,201.5,201.49,0.03]
[1756832059150,54.13252322,201.5,201.49,0.03]
[1756832060644,0.42648471,201.49,201.46,0.03]
[1756832060824,34.28325936,201.47,201.46,0.03]
[1756832061026,4.96228662,201.52,201.47,0.72]
[1756832061226,8.28325936,201.5,201.48,0.72]
[1756832061442,34.28325936,201.5,201.48,0.72]
[1756832061751,39.78,201.49,201.48,0.72]
[1756832062152,44.74302546,201.49,201.48,0.72]
[1756832062365,4.96302546,201.49,201.48,0.72]
[1756832062651,53.00628482,201.49,201.46,0.75]
[1756832062848,39.76,201.48,201.46,0.03]
[1756832063149,39.76,201.48,201.47,0.72]
[1756832063652,8.27981046,201.49,201.47,0.72]
[1756832063843,26.0,201.5,201.47,0.72]
[1756832064042,39.76,201.49,201.47,4.036785]
[1756832064354,4.96274723,201.51,201.48,4.036785]
[1756832064648,39.76,201.5,201.49,0.72]
[1756832064846,4.96274723,201.51,201.49,0.72]
[1756832065030,39.76,201.5,201.47,3.316785]
[1756832065622,4.96221545,201.53,201.49,3.316785]
[1756832065830,39.76,201.52,201.5,0.72]
[1756832066049,2.65264673,201.58,201.51,4.036785]
[1756832066252,39.76,201.57,201.55,3.316785]
[1756832066450,39.76,201.57,201.54,0.72]
[1756832066657,39.76,201.57,201.55,0.72]
[1756832067455,44.72127592,201.57,201.55,0.72]
[1756832067652,4.96127592,201.57,201.52,0.72]
[1756832067953,39.76,201.56,201.53,0.72]
[1756832068135,39.76,201.56,201.47,13.59559401]
[1756832068136,3.316785,201.55,201.5,0.72]
[1756832068343,3.316785,201.55,201.51,0.72]
[1756832068662,3.316785,201.53,201.51,0.72]
[1756832068859,3.316785,201.53,201.48,3.316785]
[1756832068860,3.316785,201.52,201.47,0.72]
[1756832069162,39.76,201.51,201.48,0.72]
[1756832069562,4.96277915,201.5,201.48,0.72]
[1756832069928,4.96228662,201.52,201.49,0.72]
[1756832070159,39.76,201.51,201.49,0.72]
[1756832070353,39.76,201.51,201.48,8.28987663]
[1756832070565,4.96228662,201.52,201.49,0.72]
[1756832070731,39.76,201.5,201.49,0.72]
[1756832070934,4.96179418,201.54,201.49,0.72]
[1756832071157,65.76,201.53,201.5,9.00987663]
[1756832071340,39.76,201.52,201.51,0.72]
[1756832073165,39.76,201.52,201.49,8.31987663]
[1756832073370,30.96217263,201.53,201.49,8.31987663]
[1756832073668,44.7223272,201.52,201.49,9.03987663]
[1756832073840,44.7223272,201.52,201.49,0.75]
[1756832074042,44.7223272,201.52,201.5,0.72]
[1756832074568,30.96130184,201.56,201.51,0.72]
[1756832074773,48.04987663,201.55,201.51,0.72]
[1756832075375,48.04987663,201.55,201.49,8.31987663]
[1756832075559,8.28987663,201.54,201.49,0.75]
[1756832075756,13.93191702,201.53,201.49,0.03]
[1756832075988,39.74,201.52,201.49,0.03]
[1756832076279,8.28987663,201.5,201.49,0.03]
[1756832077171,0.68,201.51,201.49,0.03]
[1756832077346,8.96987663,201.5,201.49,0.03]
[1756832077771,48.70987663,201.5,201.49,0.03]
[1756832077949,48.99419977,201.5,201.49,0.03]
[1756832078763,48.99419977,201.5,201.46,0.03]
[1756832078764,26.0,201.47,201.46,0.03]
[1756832078973,74.02987663,201.47,201.46,0.03]
[1756832079146,74.70987663,201.47,201.46,0.03]
[1756832079353,79.67339477,201.47,201.46,0.03]
[1756832079954,78.99339477,201.47,201.46,0.03]
[1756832080153,79.67339477,201.47,201.46,0.03]
[1756832081183,78.99339477,201.47,201.46,0.03]
[1756832081349,79.67339477,201.47,201.46,0.03]
[1756832081684,71.38351814,201.47,201.46,0.03]
[1756832081975,83.9002823,201.47,201.46,0.03]
[1756832082477,43.4802823,201.47,201.46,0.03]
[1756832082676,83.2202823,201.47,201.46,0.03]
[1756832083048,39.74,201.47,201.46,0.75]
[1756832083876,4.96228662,201.52,201.46,13.26676416]
[1756832084047,39.74,201.51,201.5,12.51676416]
[1756832084251,39.74,201.51,201.48,13.23676416]
[1756832084551,39.74,201.51,201.49,0.72]
[1756832084746,12.51676416,201.54,201.46,0.03]
[1756832084747,26.0,201.54,201.5,13.23676416]
[1756832084961,5.02106392,201.57,201.46,4.99369731]
[1756832084962,39.74,201.53,201.51,13.23676416]
[1756832085169,0.06,201.57,201.52,0.72]
[1756832085351,26.0,201.53,201.52,0.72]
[1756832085552,13.25676416,201.57,201.52,0.72]
[1756832085879,0.06,201.57,201.53,0.72]
[1756832086060,39.74,201.56,201.53,13.23676416]
[1756832086254,39.74,201.56,201.53,0.72]
[1756832087066,0.06,201.57,201.53,0.72]
[1756832087267,26.0,201.55,201.51,13.23676416]
[1756832087456,43.47839791,201.55,201.51,0.72]
[1756832087657,43.47839791,201.55,201.52,0.72]
[1756832087864,26.0,201.55,201.52,0.72]
[1756832088075,26.0,201.55,201.46,0.03]
[1756832088076,26.0,201.55,201.5,13.23676416]
[1756832088381,26.0,201.55,201.51,0.72]
[1756832088971,30.9616129,201.55,201.51,13.23676416]
[1756832089180,30.9616129,201.55,201.51,0.72]
[1756832089872,12.51676416,201.54,201.49,12.51676416]
[1756832090172,39.72,201.53,201.5,0.72]
[1756832090364,39.72,201.52,201.51,0.72]
[1756832090573,39.72,201.52,201.51,13.23676416]
[1756832090758,30.96168343,201.55,201.51,0.72]
[1756832091089,39.72,201.54,201.51,0.72]
[1756832091288,31.64168343,201.55,201.5,12.51676416]
[1756832091482,4.96228662,201.52,201.5,13.23676416]
[1756832092467,4.96228662,201.52,201.5,0.72]
[1756832092976,18.15905078,201.52,201.48,0.03]
[1756832093971,39.72,201.51,201.48,0.03]
[1756832095070,4.96277915,201.5,201.48,0.03]
[1756832095965,13.19676416,201.49,201.48,0.03]
[1756832096361,12.51676416,201.49,201.48,0.03]
[1756832097081,17.47978962,201.49,201.48,0.03]
[1756832098191,4.96302546,201.49,201.48,0.03]
[1756832098489,39.72,201.49,201.48,0.75]
[1756832099372,39.72,201.49,201.48,0.03]
[1756832099685,44.68302546,201.49,201.48,0.03]
[1756832100085,70.66302546,201.49,201.48,0.03]
[1756832100469,30.96302546,201.49,201.48,0.03]
[1756832100666,83.85978962,201.49,201.48,0.03]
[1756832100883,70.66302546,201.49,201.48,0.03]
[1756832101371,70.66302546,201.49,201.48,13.26676416]
[1756832101372,39.7,201.49,201.48,13.26676416]
[1756832101789,39.7,201.49,201.48,12.54676416]
[1756832101991,39.7,201.49,201.48,13.26676416]
[1756832102491,39.7,201.49,201.48,0.03]
[1756832103497,39.7,201.49,201.48,13.26676416]
[1756832104081,39.7,201.49,201.48,0.75]
[1756832104286,39.7,201.49,201.48,13.26676416]
[1756832105203,39.7,201.49,201.48,18.23003594]
[1756832105405,0.06,201.57,201.5,4.96277915]
[1756832105572,39.7,201.56,201.54,12.51676416]
[1756832106199,26.0,201.56,201.54,12.51676416]
[1756832106394,39.7,201.55,201.54,12.51676416]
[1756832107096,39.7,201.55,201.53,12.51676416]
[1756832107601,44.66167857,201.55,201.51,0.72]
[1756832107812,44.66167857,201.55,201.53,12.51676416]
[1756832108305,40.38,201.54,201.48,0.75]
[1756832108472,4.96204039,201.53,201.48,12.54676416]
[1756832108672,0.06,201.49,201.48,0.03]
[1756832108875,39.74,201.49,201.48,0.03]
[1756832109074,52.93676416,201.49,201.48,0.03]
[1756832109686,53.2210873,201.49,201.48,0.03]
[1756832110687,58.18411276,201.49,201.48,0.03]
[1756832111082,58.32627433,201.49,201.48,0.03]
[1756832111311,18.50411276,201.49,201.48,0.03]
[1756832111481,39.74,201.49,201.48,0.03]
[1756832111905,50.54624472,201.49,201.48,0.03]
[1756832112807,50.83056786,201.49,201.48,0.03]
[1756832113414,45.6473486,201.49,201.48,0.03]
[1756832113584,49.88624472,201.49,201.48,0.03]
[1756832114115,44.70302546,201.49,201.48,0.03]
[1756832114280,49.88624472,201.49,201.48,0.03]
[1756832114582,50.54624472,201.49,201.48,0.03]
[1756832115012,44.70302546,201.49,201.48,0.03]
[1756832115206,50.54624472,201.49,201.48,0.03]
[1756832116203,49.88624472,201.49,201.48,0.03]
[1756832116403,50.54624472,201.49,201.48,0.03]
[1756832117127,50.97272943,201.49,201.48,0.03]
[1756832117607,50.97272943,201.49,201.46,0.03]
[1756832117608,26.0,201.47,201.46,0.03]
[1756832117786,65.82216157,201.47,201.46,0.03]
[1756832117986,71.66538083,201.47,201.46,0.03]
[1756832119006,76.11106054,201.47,201.46,0.03]
[1756832119500,36.43106054,201.47,201.46,0.03]
[1756832119703,70.64351814,201.47,201.46,0.03]
[1756832120520,26.0,201.47,201.46,0.03]
[1756832120689,26.0,201.48,201.46,5.93321926]
[1756832120892,39.68,201.47,201.46,5.21321926]
[1756832121093,0.06,201.49,201.46,5.21321926]
[1756832121326,0.06,201.49,201.48,5.18321926]
[1756832121624,39.74,201.49,201.48,5.18321926]
[1756832121797,39.74,201.49,201.48,0.72]
[1756832121999,39.74,201.49,201.48,5.90321926]
[1756832123514,39.74,201.49,201.48,13.22334649]
[1756832123816,0.06,201.49,201.48,18.18661827]
[1756832124012,0.06,201.49,201.48,31.78221228]
[1756832125415,0.06,201.49,201.48,31.92437385]
[1756832125903,0.06,201.49,201.48,26.8189405]
[1756832127393,0.06,201.49,201.48,31.78221228]
[1756832128124,0.06,201.49,201.48,31.81221228]
[1756832129521,0.06,201.49,201.48,26.8489405]
[1756832130417,0.06,201.49,201.48,31.95437385]
[1756832131821,0.06,201.49,201.48,33.94308789]
[1756832132021,0.06,201.49,201.48,21.4397414]
[1756832132323,0.06,201.49,201.48,33.94308789]
[1756832133020,0.06,201.52,201.51,39.87991715]
[1756832133203,0.06,201.52,201.51,132.72167849]
[1756832133395,0.06,201.52,201.51,132.94542521]
[1756832134221,0.06,201.52,201.51,134.933645]
[1756832135106,0.06,201.52,201.51,139.89617787]
[1756832136819,0.06,201.52,201.51,137.48147337]
[1756832137709,0.06,201.52,201.51,111.48147337]
[1756832138107,0.06,201.52,201.51,106.5189405]
[1756832138339,0.06,201.52,201.51,105.7989405]
[1756832138622,0.06,201.52,201.51,111.62363494]
[1756832139202,0.06,201.52,201.51,111.90795808]
[1756832139810,0.06,201.54,201.53,39.73775558]
[1756832140000,0.06,201.54,201.53,132.22542521]
[1756832140195,0.06,201.57,201.53,150.31256657]
[1756832140400,0.06,201.57,201.56,52.52542521]
[1756832140918,0.06,201.57,201.56,53.24542521]
[1756832142309,0.06,201.57,201.56,58.20672705]
[1756832143010,0.06,201.57,201.56,97.82672705]
[1756832143205,0.06,201.58,201.56,97.82672705]
[1756832143526,0.06,201.6,201.59,39.59559401]
[1756832143824,0.06,201.6,201.59,57.06513439]
[1756832144002,0.06,201.6,201.59,57.72513439]